Workbook

Sheet Sheet1
D2: 車種選択 | E2: JA10(CC110) | I2: 速度(km/h) メトリック | N2: 速度(km/h)インチ
I3: 回転数(rpm) | J3: 1速 | K3: 2速 | L3: 3速 | M3: 4速 | N3: 回転数(rpm) | O3: 1速 | P3: 2速 | Q3: 3速 | R3: 4速
D4: クロスカブ110 JA10 | I4: 1000 | J4: =ROUND(($G$16*3.14/($G$7*$G$11*$D$23)*60)/1000000*I4,2) -> 3.87 | K4: =ROUND(($G$16*3.14/($G$7*$G$11*$E$23)*60)/1000000*I4,2) -> 6.51 | L4: =ROUND(($G$16*3.14/($G$7*$G$11*$F$23)*60)/1000000*I4,2) -> 8.9 | M4: =ROUND(($G$16*3.14/($G$7*$G$11*$G$23)*60)/1000000*I4,2) -> 11.04 | N4: 1000 | O4: =ROUND(($G$20*3.14/($G$7*$G$11*$D$23)*60)/1000000*N4,2) -> 3.84 | P4: =ROUND(($G$20*3.14/($G$7*$G$11*$E$23)*60)/1000000*N4,2) -> 6.46 | Q4: =ROUND(($G$20*3.14/($G$7*$G$11*$F$23)*60)/1000000*N4,2) -> 8.84 | R4: =ROUND(($G$20*3.14/($G$7*$G$11*$G$23)*60)/1000000*N4,2) -> 10.96
D5: 基本スペック | I5: 1500 | J5: =ROUND(($G$16*3.14/($G$7*$G$11*$D$23)*60)/1000000*I5,2) -> 5.8 | K5: =ROUND(($G$16*3.14/($G$7*$G$11*$E$23)*60)/1000000*I5,2) -> 9.76 | L5: =ROUND(($G$16*3.14/($G$7*$G$11*$F$23)*60)/1000000*I5,2) -> 13.36 | M5: =ROUND(($G$16*3.14/($G$7*$G$11*$G$23)*60)/1000000*I5,2) -> 16.56 | N5: 1500 | O5: =ROUND(($G$20*3.14/($G$7*$G$11*$D$23)*60)/1000000*N5,2) -> 5.76 | P5: =ROUND(($G$20*3.14/($G$7*$G$11*$E$23)*60)/1000000*N5,2) -> 9.69 | Q5: =ROUND(($G$20*3.14/($G$7*$G$11*$F$23)*60)/1000000*N5,2) -> 13.26 | R5: =ROUND(($G$20*3.14/($G$7*$G$11*$G$23)*60)/1000000*N5,2) -> 16.44
D6: 最大出力/rpm | E6: 8ps/7500 | F6: 車重 | G6: 105kg | I6: 2000 | J6: =ROUND(($G$16*3.14/($G$7*$G$11*$D$23)*60)/1000000*I6,2) -> 7.74 | K6: 13.02 | L6: 17.81 | M6: =ROUND(($G$16*3.14/($G$7*$G$11*$G$23)*60)/1000000*I6,2) -> 22.09 | N6: 2000 | O6: 7.68 | P6: 12.92 | Q6: 17.68 | R6: 21.92
D7: 最大トルク/rpm | E7: 0.87kgfm/5500 | F7: 一次減速比 | G7: 4.058 | I7: 2500 | J7: 9.67 | K7: 16.27 | L7: =ROUND(($G$16*3.14/($G$7*$G$11*$F$23)*60)/1000000*I7,2) -> 22.26 | M7: 27.61 | N7: 2500 | O7: 9.6 | P7: 16.15 | Q7: 22.09 | R7: 27.4
I8: 3000 | J8: 11.6 | K8: 19.53 | L8: 26.71 | M8: 33.13 | N8: 3000 | O8: 11.52 | P8: 19.38 | Q8: 26.51 | R8: 32.88
D9: スプロケット | I9: 3500 | J9: 13.54 | K9: 22.78 | L9: 31.16 | M9: 38.65 | N9: 3500 | O9: 13.44 | P9: 22.61 | Q9: 30.93 | R9: 38.36
D10: 前/後 | E10: ドライブ | F10: ドリブン | G10: 二次減速比 | I10: 4000 | J10: 15.47 | K10: 26.04 | L10: 35.62 | M10: 44.17 | N10: 4000 | O10: 15.36 | P10: 25.84 | Q10: 35.35 | R10: 43.84
D11: 丁数 | E11: 14 | F11: 37 | G11: =F11/E11 -> 2.642857143 | I11: 4500 | J11: 17.41 | K11: 29.29 | L11: 40.07 | M11: 49.69 | N11: 4500 | O11: 17.28 | P11: 29.07 | Q11: 39.77 | R11: 49.32
D12: リアタイヤのサイズ | I12: 5000 | J12: 19.34 | K12: 32.55 | L12: 44.52 | M12: 55.21 | N12: 5000 | O12: 19.2 | P12: 32.3 | Q12: 44.19 | R12: 54.8
D13: メトリック表示 | E13: 幅 | F13: 扁平率 | G13: インチ | I13: 5500 | J13: 21.27 | K13: 35.8 | L13: 48.97 | M13: 60.73 | N13: 5500 | O13: 21.12 | P13: 35.53 | Q13: 48.61 | R13: 60.28
D14: （例：80/90-17） | E14: 80 | F14: 90 | G14: 17 | I14: 6000 | J14: 23.21 | K14: 39.05 | L14: 53.42 | M14: 66.26 | N14: 6000 | O14: 23.04 | P14: 38.76 | Q14: 53.03 | R14: 65.76
D15: タイヤサイズ | E15: タイヤ厚み | F15: ホイール直径 | G15: 外周サイズ | I15: 6500 | J15: 25.14 | K15: 42.31 | L15: 57.88 | M15: 71.78 | N15: 6500 | O15: 24.95 | P15: 41.99 | Q15: 57.44 | R15: 71.24
E16: =E14*(F14/100) -> 72 | F16: =G14*25.4 -> 431.8 | G16: =E16*2+F16 -> 575.8 | I16: 7000 | J16: 27.08 | K16: 45.56 | L16: 62.33 | M16: 77.3 | N16: 7000 | O16: 26.87 | P16: 45.22 | Q16: 61.86 | R16: 76.72
D17: インチ表示 | E17: 幅 | F17: 扁平率 | G17: インチ | I17: 7500 | J17: 29.01 | K17: 48.82 | L17: 66.78 | M17: 82.82 | N17: 7500 | O17: 28.79 | P17: 48.45 | Q17: 66.28 | R17: 82.2
D18: (例：2.50-17) | E18: 2.75 | F18: - | G18: 17 | I18: 8000 | J18: =ROUND(($G$16*3.14/($G$7*$G$11*$D$23)*60)/1000000*I18,2) -> 30.94 | K18: 52.07 | L18: 71.23 | M18: 88.34 | N18: 8000 | O18: 30.71 | P18: 51.68 | Q18: 70.7 | R18: 87.68
D19: タイヤサイズ | E19: タイヤ厚み | F19: ホイール直径 | G19: 外周サイズ | I19: 8500 | J19: =ROUND(($G$16*3.14/($G$7*$G$11*$D$23)*60)/1000000*I19,2) -> 32.88 | K19: 55.33 | L19: 75.68 | M19: 93.86 | N19: 8500 | O19: 32.63 | P19: 54.91 | Q19: 75.12 | R19: 93.16
E20: =E18*25.4 -> 69.85 | F20: =G18*25.4 -> 431.8 | G20: =E20*2+F20 -> 571.5 | I20: 9000 | J20: =ROUND(($G$16*3.14/($G$7*$G$11*$D$23)*60)/1000000*I20,2) -> 34.81 | K20: 58.58 | L20: 80.14 | M20: 99.38 | N20: 9000 | O20: 34.55 | P20: 58.14 | Q20: 79.54 | R20: 98.64
D21: 変速比 | I21: 9500 | J21: 36.75 | K21: 61.84 | L21: 84.59 | M21: 104.9 | N21: 9500 | O21: 36.47 | P21: 61.37 | Q21: 83.96 | R21: 104.12
D22: 1速 | E22: 2速 | F22: 3速 | G22: 4速 | I22: 9800 | J22: 37.91 | K22: 63.79 | L22: 87.26 | M22: 108.22 | N22: 9800 | O22: 37.62 | P22: 63.31 | Q22: 86.61 | R22: 107.41
D23: 2.615 | E23: 1.554 | F23: 1.136 | G23: 0.916 | I23: 巡航時の速度と回転数（3速、4速）
I24: 速度(km/h) | J24: 40 | K24: 60 | L24: 80 | M24: 100 | N24: 速度(km/h) | O24: 40 | P24: 60 | Q24: 80 | R24: 100
I25: 3速(rpm) | J25: =(J24*$G$7*$F$23*$G$11)/(($G$16*3.14)*0.06)*1000 -> 4492.32838 | K25: =(K24*$G$7*$F$23*$G$11)/(($G$16*3.14)*0.06)*1000 -> 6738.49257 | L25: =(L24*$G$7*$F$23*$G$11)/(($G$16*3.14)*0.06)*1000 -> 8984.65676 | M25: =(M24*$G$7*$F$23*$G$11)/(($G$16*3.14)*0.06)*1000 -> 11230.82095 | N25: 3速(rpm) | O25: =(O24*$G$7*$F$23*$G$11)/(($G$20*3.14)*0.06)*1000 -> 4526.128926 | P25: =(P24*$G$7*$F$23*$G$11)/(($G$20*3.14)*0.06)*1000 -> 6789.193389 | Q25: =(Q24*$G$7*$F$23*$G$11)/(($G$20*3.14)*0.06)*1000 -> 9052.257852 | R25: =(100*$G$7*$F$23*$G$11)/(($G$20*3.14)*0.06)*1000 -> 11315.32232
I26: 4速(rpm) | J26: =(J24*$G$7*$G$23*$G$11)/(($G$16*3.14)*0.06)*1000 -> 3622.335208 | K26: =(K24*$G$7*$G$23*$G$11)/(($G$16*3.14)*0.06)*1000 -> 5433.502812 | L26: =(L24*$G$7*$G$23*$G$11)/(($G$16*3.14)*0.06)*1000 -> 7244.670416 | M26: =(M24*$G$7*$G$23*$G$11)/(($G$16*3.14)*0.06)*1000 -> 9055.83802 | N26: 4速(rpm) | O26: =(40*$G$7*$G$23*$G$11)/(($G$20*3.14)*0.06)*1000 -> 3649.589873 | P26: =(60*$G$7*$G$23*$G$11)/(($G$20*3.14)*0.06)*1000 -> 5474.38481 | Q26: =(80*$G$7*$G$23*$G$11)/(($G$20*3.14)*0.06)*1000 -> 7299.179747 | R26: =(100*$G$7*$G$23*$G$11)/(($G$20*3.14)*0.06)*1000 -> 9123.974684
